bitfinex/quotes_SOLUSD_20250819
["timestamp","ask_amount","ask_price","bid_price","bid_amount"]
[1755619192092,50.94,178.24,178.23,0.06]
[1755619192302,56.68301258,178.24,178.23,0.06]
[1755619193302,50.94,178.24,178.23,0.06]
[1755619194219,56.68301258,178.24,178.23,0.06]
[1755619197146,10.0,178.24,178.23,0.75]
[1755619197357,50.92,178.24,178.23,0.75]
[1755619197563,50.92,178.24,178.23,0.06]
[1755619197873,10.0,178.24,178.23,6.49301258]
[1755619198226,10.03,178.25,178.23,6.49301258]
[1755619198424,10.03,178.25,178.24,6.43301258]
[1755619199765,0.03,178.25,178.24,6.43301258]
[1755619201433,0.03,178.25,178.23,0.06]
[1755619201745,0.03,178.25,178.23,5.80301258]
[1755619201940,0.03,178.25,178.24,6.43301258]
[1755619202770,0.03,178.27,178.24,6.43301258]
[1755619202953,10.0,178.28,178.26,31.74301258]
[1755619203140,10.0,178.28,178.27,6.44301258]
[1755619203456,0.03,178.29,178.27,6.44301258]
[1755619203667,0.03,178.29,178.28,40.29559401]
[1755619203834,0.03,178.29,178.28,0.7]
[1755619204037,10.03,178.29,178.26,6.44301258]
[1755619204275,10.0,178.28,178.24,13.59559401]
[1755619204432,10.0,178.27,178.24,0.7]
[1755619204634,10.0,178.26,178.23,0.06]
[1755619204875,10.0,178.25,178.23,0.06]
[1755619205170,10.68,178.25,178.23,0.06]
[1755619205378,10.0,178.25,178.23,0.06]
[1755619205536,10.0,178.24,178.23,0.76]
[1755619205731,50.9,178.26,178.24,0.7]
[1755619205964,10.0,178.26,178.25,5.74301258]
[1755619206168,10.0,178.28,178.25,5.74301258]
[1755619206339,10.03,178.29,178.27,5.75323005]
[1755619206541,10.0,178.28,178.25,13.59559401]
[1755619206959,10.0,178.27,178.23,0.06]
[1755619207174,10.0,178.25,178.23,13.65559401]
[1755619207468,10.0,178.24,178.23,0.06]
[1755619207767,19.88314224,178.24,178.23,0.06]
[1755619207967,20.44468761,178.24,178.23,0.06]
[1755619208461,10.0,178.22,178.21,0.06]
[1755619208642,10.56154537,178.22,178.21,0.06]
[1755619208843,20.44468761,178.22,178.21,0.06]
[1755619209061,11.24154537,178.22,178.21,0.06]
[1755619209263,20.44468761,178.22,178.21,0.06]
[1755619209472,10.68,178.22,178.21,0.06]
[1755619209675,10.0,178.22,178.21,9.26314224]
[1755619209841,10.0,178.22,178.21,0.06]
[1755619209842,19.88314224,178.22,178.21,0.06]
[1755619210664,25.49418477,178.22,178.21,0.06]
[1755619212070,10.68,178.22,178.21,0.06]
[1755619212281,19.88314224,178.22,178.21,0.06]
[1755619213769,66.37418477,178.22,178.21,0.06]
[1755619214654,92.37418477,178.22,178.21,0.06]
[1755619215269,105.96977878,178.22,178.21,0.06]
[1755619215469,89.73446639,178.22,178.21,0.06]
[1755619215766,49.59559401,178.21,178.2,0.1]
[1755619215969,69.24342386,178.21,178.2,0.1]
[1755619216180,69.24342386,178.21,178.18,0.1]
[1755619216181,13.59559401,178.19,178.18,0.1]
[1755619216355,74.24028162,178.19,178.18,0.1]
[1755619216674,74.92028162,178.19,178.18,0.1]
[1755619216861,39.59559401,178.18,178.07,9.20314224]
[1755619217073,65.09103841,178.18,178.07,9.20314224]
[1755619217580,74.29418041,178.18,178.06,0.7]
[1755619217884,48.29418041,178.18,178.06,9.90314224]
[1755619218054,48.85572578,178.18,178.06,9.90314224]
[1755619220799,48.85572578,178.18,178.07,0.7]
[1755619220956,10.0,178.06,178.05,0.1]
[1755619221686,10.0,178.06,178.05,10.00314224]
[1755619221876,10.0,178.06,178.05,0.8]
[1755619223964,10.0,178.07,178.05,14.39559401]
[1755619224287,10.0,178.07,178.06,9.20314224]
[1755619224653,10.0,178.06,178.05,0.1]
[1755619224856,10.0,178.06,178.05,10.00314224]
[1755619225559,10.0,178.06,178.05,0.8]
[1755619226289,10.0,178.06,178.05,10.00314224]
[1755619227192,10.0,178.07,178.05,10.00314224]
[1755619227358,10.0,178.06,178.05,0.8]
[1755619227564,10.0,178.06,178.05,0.1]
[1755619228075,10.0,178.06,178.05,0.8]
[1755619228454,10.0,178.09,178.05,10.00314224]
[1755619228682,10.0,178.08,178.05,0.1]
[1755619228990,10.0,178.07,178.06,9.20314224]
[1755619229290,10.0,178.06,178.05,0.1]
[1755619229670,57.17608446,178.06,178.05,0.1]
[1755619229875,51.56,178.06,178.05,0.1]
[1755619230172,60.76314224,178.06,178.05,0.1]
[1755619230769,66.3792267,178.06,178.05,0.1]
[1755619231291,60.76314224,178.06,178.05,0.1]
[1755619231591,50.88,178.06,178.05,0.1]
[1755619232598,60.76314224,178.06,178.05,0.1]
[1755619233089,60.08314224,178.06,178.05,0.1]
[1755619233259,50.88,178.06,178.05,0.1]
[1755619234097,51.55,178.06,178.05,0.1]
[1755619234391,50.88,178.06,178.05,0.1]
[1755619234699,10.0,178.06,178.05,9.30314224]
[1755619234903,10.0,178.09,178.06,13.59559401]
[1755619235196,10.0,178.09,178.07,0.7]
[1755619235410,10.0,178.09,178.05,0.1]
[1755619235411,0.67,178.08,178.05,0.1]
[1755619235698,10.0,178.06,178.05,0.1]
[1755619236059,10.0,178.06,178.05,0.8]
[1755619236667,10.0,178.06,178.05,23.59873625]
[1755619237176,10.0,178.06,178.05,0.8]
[1755619237380,40.88,178.09,178.05,0.8]
[1755619237381,10.0,178.09,178.05,15.61947197]
[1755619237573,10.0,178.11,178.08,9.20314224]
[1755619237782,10.0,178.13,178.1,22.79873625]
[1755619238216,10.0,178.14,178.09,26.0]
[1755619238503,10.0,178.11,178.09,0.7]
[1755619238706,10.0,178.14,178.1,9.90314224]
[1755619238912,10.0,178.14,178.13,9.20314224]
[1755619239080,10.0,178.16,178.13,9.90314224]
[1755619239402,10.0,178.16,178.11,39.59559401]
[1755619239582,10.0,178.16,178.11,45.2099828]
[1755619239783,10.0,178.16,178.12,0.7]
[1755619239983,10.0,178.14,178.11,45.2099828]
[1755619240171,10.0,178.14,178.13,0.7]
[1755619240375,10.0,178.14,178.11,45.2099828]
[1755619240592,10.0,178.14,178.11,39.59559401]
[1755619240769,10.0,178.14,178.12,0.7]
[1755619240973,10.0,178.14,178.11,45.20998707]
[1755619241204,0.67,178.18,178.11,45.20998707]
[1755619241205,10.0,178.16,178.12,0.7]
[1755619241500,10.0,178.17,178.15,9.20314224]
[1755619241667,0.03,178.21,178.18,26.0]
[1755619241869,10.0,178.2,178.18,26.0]
[1755619242076,10.0,178.18,178.14,13.59559401]
[1755619242274,10.0,178.18,178.14,40.29559401]
[1755619242715,10.0,178.17,178.13,26.0]
[1755619242868,10.0,178.15,178.14,9.20314224]
[1755619246769,10.0,178.16,178.14,9.20314224]
[1755619246968,10.0,178.17,178.15,9.20314224]
[1755619247272,10.0,178.17,178.15,0.7]
[1755619247467,10.0,178.18,178.15,0.7]
[1755619247667,0.7,178.21,178.18,26.0]
[1755619247668,0.03,178.21,178.18,26.0]
[1755619248000,10.0,178.2,178.19,0.7]
[1755619248199,0.03,178.21,178.2,13.59559401]
[1755619248407,10.03,178.21,178.2,9.20314224]
[1755619249108,10.0,178.2,178.19,9.20314224]
[1755619251517,10.0,178.19,178.16,26.0]
[1755619251672,10.0,178.19,178.18,9.20314224]
[1755619251997,10.0,178.17,178.16,13.59559401]
[1755619252196,10.0,178.17,178.15,13.59559401]
[1755619252370,0.03,178.21,178.15,14.29559401]
[1755619252371,10.0,178.18,178.15,14.29559401]
[1755619252569,10.0,178.18,178.16,0.7]
[1755619253006,10.0,178.19,178.17,26.0]
[1755619253170,10.0,178.19,178.18,9.20314224]
[1755619253508,10.0,178.2,178.18,9.20314224]
[1755619253719,10.0,178.19,178.17,26.7]
[1755619253898,10.0,178.2,178.17,26.7]
[1755619254091,0.03,178.21,178.18,14.29559401]
[1755619254507,10.03,178.21,178.18,14.29559401]
[1755619254820,0.03,178.21,178.2,22.79873625]
[1755619255037,0.03,178.21,178.2,32.70187849]
[1755619255320,0.03,178.21,178.2,23.49873625]
[1755619255488,0.03,178.21,178.2,64.31355076]
[1755619256082,0.03,178.21,178.2,58.70187849]
[1755619256306,0.03,178.21,178.2,48.79873625]
[1755619257406,0.03,178.21,178.2,39.59559401]
[1755619257593,0.03,178.21,178.2,48.79873625]
[1755619257788,0.03,178.21,178.2,39.59559401]
[1755619258122,0.03,178.21,178.2,48.79873625]
[1755619258507,0.03,178.21,178.2,35.20314224]
[1755619259789,0.03,178.21,178.2,58.70187849]
[1755619260014,0.03,178.21,178.2,95.95040852]
[1755619260332,0.03,178.21,178.2,89.63873625]
[1755619260486,0.03,178.21,178.2,48.79873625]
[1755619260684,0.03,178.21,178.2,38.31355076]
[1755619260885,0.03,178.22,178.21,22.79873625]
[1755619261088,0.03,178.22,178.21,63.63873625]
[1755619261317,0.03,178.22,178.21,22.79873625]
[1755619261618,0.03,178.22,178.21,23.49873625]
[1755619261931,0.03,178.22,178.21,22.79873625]
[1755619262088,0.7,178.22,178.21,9.20314224]
[1755619262296,0.03,178.22,178.21,9.20314224]
[1755619262625,0.03,178.22,178.21,28.41009363]
[1755619262935,0.03,178.22,178.21,69.95009363]
[1755619263220,0.03,178.22,178.21,60.74695139]
[1755619263434,0.03,178.24,178.22,13.59559401]
[1755619263592,0.03,178.26,178.25,48.79873625]
[1755619263806,0.03,178.29,178.26,19.20537747]
[1755619264002,10.03,178.29,178.26,29.08851971]
[1755619264199,0.03,178.29,178.26,29.08851971]
[1755619264612,0.03,178.29,178.25,5.61006722]
[1755619264823,10.03,178.29,178.26,35.20314224]
[1755619265129,10.03,178.29,178.26,48.79873625]
[1755619266230,10.03,178.29,178.24,46.43030432]
[1755619266533,0.67,178.26,178.25,13.59559401]
[1755619266734,10.67,178.26,178.24,40.82]
[1755619266931,0.67,178.25,178.24,26.0]
[1755619267297,10.67,178.25,178.22,40.82]
[1755619267528,10.0,178.24,178.22,40.82]
[1755619267699,10.0,178.24,178.23,9.20314224]
[1755619268833,10.0,178.22,178.21,9.26314224]
[1755619269016,0.67,178.22,178.21,9.26314224]
[1755619269329,10.67,178.22,178.21,0.06]
[1755619269531,10.67,178.22,178.21,9.26314224]
[1755619270031,10.67,178.22,178.21,26.06]
[1755619270211,9.87314224,178.22,178.21,0.06]
[1755619270411,10.0,178.18,178.17,0.06]
[1755619270933,19.87314224,178.18,178.17,0.06]
[1755619271122,19.20314224,178.16,178.15,0.06]
[1755619271322,10.0,178.16,178.15,0.06]
[1755619271646,10.67,178.16,178.15,0.06]
[1755619272113,16.28293219,178.16,178.15,0.06]
[1755619272511,66.30607443,178.16,178.15,0.06]
[1755619272915,66.8676198,178.16,178.15,0.06]
[1755619276112,52.05154537,178.16,178.15,0.06]
[1755619276851,61.25468761,178.16,178.15,0.06]
[1755619277229,52.05154537,178.16,178.15,0.06]
[1755619277546,61.25468761,178.16,178.15,0.06]
[1755619277840,52.05154537,178.16,178.15,0.06]
[1755619278048,66.8676198,178.16,178.15,0.06]
[1755619279141,69.1185408,178.16,178.15,0.06]
[1755619280047,13.48246637,178.16,178.15,0.06]
[1755619280217,57.66447756,178.16,178.15,0.06]
[1755619280418,66.8676198,178.16,178.15,0.06]
[1755619281335,52.05154537,178.16,178.15,0.06]
[1755619281515,51.38154537,178.16,178.15,0.06]
[1755619281921,50.82,178.16,178.15,0.06]
[1755619282539,51.49,178.16,178.15,0.06]
[1755619284060,50.82,178.16,178.15,0.06]
[1755619284741,51.49,178.16,178.15,0.06]
[1755619285144,50.82,178.16,178.15,0.06]
[1755619285459,51.49,178.16,178.15,0.06]
[1755619285665,50.82,178.16,178.15,0.06]
[1755619285968,50.82,178.16,178.15,9.94314224]
[1755619286132,50.82,178.16,178.15,9.26314224]
[1755619286439,50.82,178.16,178.15,0.06]
[1755619286625,66.8676198,178.16,178.15,0.06]
[1755619287043,57.66447756,178.16,178.15,0.06]
[1755619287930,61.25468761,178.16,178.15,0.06]
[1755619288132,52.05154537,178.16,178.15,0.06]
[1755619288346,66.8676198,178.16,178.15,0.06]
[1755619290463,51.38154537,178.16,178.15,0.06]
[1755619290660,50.82,178.16,178.15,0.06]
[1755619290860,10.0,178.16,178.15,0.06]
[1755619291038,10.0,178.16,178.15,9.88314224]
[1755619291232,10.0,178.15,178.14,9.20314224]
[1755619291434,10.0,178.15,178.13,9.26314224]
[1755619291668,10.0,178.15,178.14,9.88314224]
[1755619292772,50.85,178.17,178.14,23.47873625]
[1755619292937,10.0,178.16,178.15,9.87314224]
[1755619293138,10.0,178.16,178.15,0.67]
[1755619293849,10.0,178.16,178.14,13.59559401]
[1755619294047,50.85,178.17,178.14,14.26559401]
[1755619294252,10.0,178.16,178.14,14.26559401]
[1755619294446,10.0,178.16,178.15,0.67]
[1755619294763,0.03,178.17,178.16,13.59559401]
[1755619294952,0.03,178.17,178.16,23.46873625]
[1755619296060,0.03,178.17,178.16,29.08166844]
[1755619297091,0.03,178.17,178.16,23.46873625]
[1755619297447,0.03,178.17,178.16,14.26559401]
[1755619297663,0.03,178.17,178.16,23.46873625]
[1755619297981,0.03,178.17,178.16,29.08166844]
[1755619298148,0.03,178.17,178.16,23.46873625]
[1755619299284,10.03,178.17,178.16,13.59559401]
[1755619299491,0.03,178.17,178.16,23.46873625]
[1755619299678,0.03,178.17,178.16,22.79873625]
[1755619299888,10.03,178.17,178.13,0.06]
[1755619300214,10.0,178.16,178.13,0.06]
[1755619300372,10.0,178.14,178.13,22.85873625]
[1755619300685,19.88314224,178.14,178.13,0.06]
[1755619300891,10.68,178.14,178.13,0.06]
[1755619301965,16.29356236,178.14,178.13,0.06]
[1755619302167,10.68,178.14,178.13,0.06]
[1755619302689,16.85510773,178.14,178.13,0.06]
[1755619303465,26.05824997,178.14,178.13,0.06]
[1755619305593,20.44468761,178.14,178.13,0.06]
[1755619305795,26.05824997,178.14,178.13,0.06]
[1755619307401,16.85510773,178.14,178.13,0.06]
[1755619307612,10.0,178.14,178.13,0.06]
[1755619310301,10.0,178.14,178.13,9.26314224]
[1755619310711,10.0,178.14,178.13,23.52873625]
[1755619310920,10.0,178.15,178.14,13.59559401]
[1755619311122,10.0,178.15,178.14,14.26559401]
[1755619312400,10.0,178.15,178.14,23.46873625]
[1755619314040,10.0,178.15,178.14,14.26559401]
[1755619314414,10.0,178.15,178.13,0.06]
[1755619314619,10.0,178.15,178.13,0.73]
[1755619315009,10.0,178.15,178.14,0.67]
[1755619315322,0.03,178.17,178.15,13.59559401]
[1755619315515,0.03,178.17,178.16,14.81607443]
[1755619315711,0.03,178.17,178.16,15.48607443]
[1755619316740,0.03,178.17,178.16,29.08166844]
[1755619317107,0.03,178.17,178.16,55.08166844]
[1755619317312,0.03,178.17,178.16,19.8785262]
[1755619317563,0.03,178.17,178.16,55.08166844]
[1755619317746,0.03,178.17,178.16,29.08166844]
[1755619318035,0.03,178.17,178.16,22.79873625]
[1755619318215,0.03,178.17,178.16,48.79873625]
[1755619318840,0.03,178.17,178.16,55.08166844]
[1755619319024,0.03,178.17,178.16,29.08166844]
[1755619321237,0.03,178.19,178.18,39.59559401]
[1755619321453,0.03,178.19,178.18,48.79873625]
[1755619321632,0.03,178.19,178.18,64.28418065]
[1755619321967,0.03,178.21,178.18,64.28418065]
[1755619321968,0.03,178.21,178.19,13.59559401]
[1755619322171,0.03,178.27,178.26,39.59559401]
[1755619322379,0.03,178.27,178.26,48.79873625]
[1755619322765,0.03,178.27,178.26,49.46873625]
[1755619323374,0.03,178.27,178.26,90.26873625]
[1755619323673,0.03,178.3,178.29,39.59559401]
[1755619323890,0.03,178.3,178.29,98.78187849]
[1755619324102,0.03,178.3,178.29,99.48187849]
[1755619324989,0.03,178.31,178.3,13.59559401]
[1755619325190,0.03,178.31,178.3,32.70187849]
[1755619325661,0.03,178.31,178.3,38.31040344]
[1755619327006,0.03,178.31,178.3,19.20411896]
[1755619327158,0.03,178.31,178.3,37.61040344]
[1755619327697,0.03,178.31,178.3,29.1072612]
[1755619327863,0.03,178.31,178.3,37.61040344]
[1755619328058,0.03,178.31,178.3,38.31040344]
[1755619328566,0.03,178.31,178.3,32.00187849]
[1755619328889,0.03,178.31,178.3,22.79873625]
[1755619329097,0.75,178.31,178.3,22.79873625]
[1755619329294,0.75,178.31,178.3,9.20314224]
[1755619329766,0.75,178.31,178.3,48.79873625]
[1755619330096,0.03,178.31,178.3,32.70187849]
[1755619330467,0.03,178.31,178.3,32.00187849]
[1755619330797,0.03,178.31,178.3,22.79873625]
[1755619331003,0.03,178.31,178.3,38.31040344]
[1755619331994,0.2,178.33,178.32,39.59559401]
[1755619332196,0.2,178.33,178.32,63.55873625]
[1755619332491,0.2,178.33,178.32,64.25873625]
[1755619333170,0.2,178.33,178.32,63.55873625]
[1755619333381,0.2,178.33,178.32,69.16663216]
[1755619333675,0.92,178.33,178.32,22.79873625]
[1755619333881,10.92,178.33,178.32,13.59559401]
[1755619334393,10.0,178.32,178.3,49.96314224]
[1755619334595,10.0,178.32,178.3,9.20314224]
[1755619334779,10.72,178.31,178.3,9.20314224]
[1755619335507,10.2,178.33,178.3,9.20314224]
[1755619335696,0.2,178.33,178.32,48.79873625]
[1755619336001,0.92,178.33,178.32,39.59559401]
[1755619336210,10.0,178.32,178.3,49.94314224]
[1755619336416,0.72,178.32,178.31,22.79873625]
[1755619336594,10.2,178.33,178.31,22.79873625]
[1755619336788,0.2,178.33,178.32,22.79873625]
[1755619337017,0.2,178.33,178.32,89.53873625]
[1755619337812,0.2,178.33,178.3,13.59559401]
[1755619337813,10.0,178.31,178.3,13.59559401]
[1755619337992,10.72,178.31,178.3,13.59559401]
[1755619338194,10.0,178.3,178.29,39.59559401]
[1755619338419,10.72,178.3,178.29,39.59559401]
[1755619339212,10.92,178.33,178.3,13.59559401]
[1755619339400,10.92,178.33,178.32,22.79873625]
[1755619340803,0.2,178.33,178.32,48.79873625]
[1755619341204,0.2,178.33,178.32,39.59559401]
[1755619341407,10.92,178.33,178.32,39.59559401]
[1755619342901,0.92,178.33,178.32,48.79873625]
[1755619343116,0.2,178.33,178.32,48.79873625]
[1755619345120,10.2,178.33,178.32,48.79873625]
[1755619345424,10.92,178.33,178.32,48.79873625]
[1755619345624,0.2,178.33,178.32,49.49873625]
[1755619345806,0.2,178.33,178.32,48.79873625]
[1755619346423,0.92,178.33,178.32,39.59559401]
[1755619346930,10.92,178.33,178.32,48.79873625]
[1755619347228,10.0,178.29,178.27,0.06]
[1755619347429,10.0,178.3,178.28,9.20314224]
[1755619347602,10.0,178.3,178.29,35.20314224]
[1755619347930,10.0,178.3,178.29,39.59559401]
[1755619348142,10.0,178.31,178.3,13.59559401]
[1755619348424,9.40314224,178.33,178.3,13.59559401]
[1755619348425,10.2,178.33,178.3,22.79873625]
[1755619348634,0.2,178.33,178.32,9.20314224]
[1755619349095,0.92,178.33,178.32,39.59559401]
[1755619349937,0.2,178.33,178.32,48.79873625]
[1755619350238,0.2,178.33,178.32,49.49873625]
[1755619350408,0.2,178.33,178.32,54.40031409]
[1755619350931,0.2,178.33,178.32,50.95230518]
[1755619351317,0.2,178.33,178.32,45.34440927]
[1755619351627,0.2,178.33,178.32,50.95230518]
[1755619351805,0.2,178.33,178.32,45.20348992]
[1755619352001,0.2,178.33,178.32,50.95230518]
[1755619352211,0.2,178.33,178.32,45.34440927]
[1755619352439,0.03,178.32,178.29,0.06]
[1755619352614,0.03,178.32,178.3,46.48881526]
[1755619352812,0.03,178.32,178.31,5.74881526]
[1755619353015,0.03,178.32,178.31,19.34440927]
[1755619354134,0.03,178.32,178.31,24.95261969]
[1755619354322,0.03,178.32,178.31,65.69259597]
[1755619354934,0.03,178.32,178.31,69.86085084]
[1755619357539,0.03,178.32,178.31,63.53264042]
[1755619357734,10.0,178.31,178.29,0.06]
[1755619358038,0.65,178.3,178.29,0.06]
[1755619358209,0.03,178.32,178.29,9.25704641]
[1755619358536,0.65,178.31,178.29,9.25704641]
[1755619358836,0.65,178.31,178.29,0.06]
[1755619359061,0.65,178.31,178.29,9.25704641]
[1755619359256,10.03,178.32,178.31,13.59559401]
[1755619359257,0.03,178.32,178.31,13.59559401]
[1755619359472,0.03,178.32,178.31,48.79264042]
[1755619359765,0.03,178.32,178.31,49.51264042]
[1755619360052,0.03,178.32,178.31,48.79264042]
[1755619361154,0.03,178.32,178.31,54.40085084]
[1755619361657,0.03,178.32,178.31,48.79264042]
[1755619363028,0.03,178.32,178.31,54.40085084]
[1755619363229,0.03,178.32,178.31,55.12085084]
[1755619363531,0.03,178.32,178.31,54.40085084]
[1755619364452,0.03,178.32,178.31,55.12085084]
[1755619364824,0.03,178.32,178.31,39.59559401]
[1755619365029,0.03,178.32,178.31,48.79264042]
[1755619365946,0.03,178.32,178.31,39.59559401]
[1755619366743,0.03,178.32,178.31,45.20380443]
[1755619366944,0.03,178.32,178.31,39.59559401]
[1755619368148,0.68,178.32,178.31,13.59559401]
[1755619368731,0.03,178.32,178.31,13.59559401]
[1755619369224,0.03,178.32,178.31,13.65559401]
[1755619369843,0.03,178.32,178.31,0.06]
[1755619369844,19.87704641,178.32,178.31,0.06]
[1755619370255,0.03,178.32,178.31,13.65559401]
[1755619370448,0.03,178.32,178.31,23.57264042]
[1755619370960,9.87704641,178.32,178.31,13.65559401]
[1755619371126,19.87704641,178.32,178.31,13.65559401]
[1755619371332,19.87704641,178.32,178.31,0.06]
[1755619372561,10.68,178.32,178.31,0.06]
[1755619372751,19.87704641,178.32,178.31,0.06]
[1755619373558,25.48494232,178.32,178.31,0.06]
[1755619375864,28.39409282,178.3,178.29,0.06]
[1755619376042,28.95563819,178.3,178.29,0.06]
[1755619376363,29.60563819,178.3,178.29,0.06]
[1755619377158,20.40859178,178.3,178.29,0.06]
[1755619377363,11.21154537,178.3,178.29,0.06]
[1755619377565,26.01711673,178.3,178.29,0.06]
[1755619377770,10.65,178.3,178.29,0.06]
[1755619377972,10.0,178.3,178.29,0.06]
[1755619378934,9.22704641,178.32,178.29,0.06]
[1755619378935,10.0,178.31,178.29,0.06]
[1755619379135,10.0,178.3,178.29,0.06]
[1755619379675,10.65,178.3,178.29,0.06]
[1755619379839,19.84704641,178.3,178.29,0.06]
[1755619380336,25.45557136,178.3,178.29,0.06]
[1755619381067,34.65261777,178.3,178.29,0.06]
[1755619381473,25.45557136,178.3,178.29,0.06]
[1755619382061,34.65261777,178.3,178.29,0.06]
[1755619382879,25.45557136,178.3,178.29,0.06]
[1755619383965,34.65261777,178.3,178.29,0.06]
[1755619384165,75.39261777,178.3,178.29,0.06]
[1755619384370,10.0,178.26,178.25,0.06]
[1755619384680,10.0,178.24,178.23,0.06]
[1755619384868,19.75859178,178.24,178.23,0.06]
[1755619385201,20.45859178,178.24,178.23,0.06]
[1755619385757,26.0690047,178.24,178.23,0.06]
[1755619387654,26.0690047,178.24,178.16,0.06]
[1755619387655,10.0,178.17,178.16,0.06]
[1755619389671,19.19704641,178.17,178.16,0.06]
[1755619390306,10.0,178.18,178.16,9.94704641]
[1755619390615,10.0,178.17,178.16,9.94704641]
[1755619391185,10.0,178.19,178.16,35.94704641]
[1755619391501,10.0,178.22,178.18,9.19704641]
[1755619391698,10.0,178.2,178.19,26.0]
[1755619391995,10.0,178.19,178.17,9.19704641]
[1755619392194,10.0,178.17,178.16,22.85264042]
[1755619392395,10.0,178.17,178.16,23.54264042]
[1755619392794,10.0,178.18,178.16,23.54264042]
[1755619392989,10.0,178.18,178.17,9.19704641]
[1755619393193,10.0,178.2,178.17,9.88704641]
[1755619393495,10.0,178.23,178.2,39.59559401]
[1755619393697,10.0,178.23,178.22,9.19704641]
[1755619394201,10.0,178.24,178.22,9.88704641]
[1755619394516,10.0,178.24,178.23,9.88704641]
[1755619394673,10.0,178.26,178.23,9.88704641]
[1755619394877,10.0,178.24,178.23,0.69]
[1755619395196,10.0,178.26,178.23,0.69]
[1755619395376,10.0,178.24,178.23,0.69]
[1755619395576,10.0,178.23,178.21,26.0]
[1755619395814,10.0,178.21,178.19,13.59559401]
[1755619395973,46.36981877,178.26,178.19,13.59559401]
[1755619395974,10.0,178.22,178.2,9.88704641]
[1755619396173,10.0,178.22,178.21,22.79264042]
[1755619396373,10.0,178.23,178.21,23.48264042]
[1755619396589,10.0,178.23,178.22,35.88704641]
[1755619397124,10.0,178.23,178.22,35.19704641]
[1755619398118,10.0,178.23,178.22,9.19704641]
[1755619398300,10.0,178.23,178.22,22.79264042]
[1755619398498,10.0,178.23,178.22,23.48264042]
[1755619399295,10.0,178.24,178.22,23.48264042]
[1755619399615,10.0,178.26,178.23,23.48264042]
[1755619399925,10.0,178.27,178.26,13.59559401]
[1755619400127,10.0,178.28,178.27,13.59559401]
[1755619400427,10.0,178.28,178.27,22.79264042]
[1755619401036,10.0,178.28,178.27,23.48264042]
[1755619401194,10.0,178.28,178.27,22.79264042]
[1755619401385,10.0,178.27,178.23,6.30066992]
[1755619401587,10.0,178.27,178.24,13.59559401]
[1755619401812,10.0,178.26,178.25,9.19704641]
[1755619402309,10.0,178.25,178.24,9.19704641]
[1755619402691,10.0,178.25,178.24,9.88704641]
[1755619402896,0.03,178.3,178.29,13.59559401]
[1755619403095,0.03,178.3,178.29,31.98968683]
[1755619403304,0.03,178.3,178.29,32.67968683]
[1755619403818,0.03,178.3,178.29,23.48264042]
[1755619404442,0.03,178.3,178.29,29.09147995]
[1755619404633,0.03,178.3,178.29,38.28852636]
[1755619405631,0.03,178.32,178.31,39.59559401]
[1755619405798,0.03,178.32,178.31,48.79264042]
[1755619405998,0.03,178.32,178.31,49.48264042]